Cogmind - Beta 16 @@@ ROGUE MODE // 2026.01.26 @ 16:30:55 Player: luckinvolved Result: Destroyed by G-34 Mercenary with Small Laser Performance ------------- Evolutions (1) 500 Regions Visited (2) 400 Robots Destroyed (0) 0 Value Destroyed (0) 0 Prototype IDs (0) 0 Alien Tech Used (0) 0 Bonus (200) 200 TOTAL SCORE: 1100 Bonus ------- Pacifist 200 Cogmind --------- Core Integrity 0/400 Matter 259/300 Energy 65/100 System Corruption 0% Temperature Cool (33) Movement Hovering (56) Location -9/Materials Parts ------- > --- POWER (1) -------- (None) > --- PROPULSION (3) --- Hover Unit Improved Hover Unit > --- UTILITY (3) ------ (None) > --- WEAPON (2) ------- (None) > --- INVENTORY (5) ---- Improved Hover Unit Improved Hover Unit Peak State ------------ > --- POWER ------------ (None) > --- PROPULSION ------- Hover Unit Hover Unit Improved Hover Unit > --- UTILITY ---------- (None) > --- WEAPON ----------- (None) > --- INVENTORY -------- Improved Hover Unit Improved Hover Unit [Rating: 4] Favorites ----------- Power None Propulsion VTOL Module Hover Unit Hover Unit Flight Unit VTOL Module Utility Salvage Targeting Computer Processor Salvage Targeting Computer Weapon None Build | -11 -10 -9 ------- Run | Yrd Mat Mat Slots Evolved 2 | . . 2 Power . | . . . Propulsion 1 | . . 1 Utility 1 | . . 1 Weapon . | . . . Parts Attached 6 | . . 6 Power . | . . . Engine . | . . . Core . | . . . Reactor . | . . . Propulsion 5 | . . 5 Treads . | . . . Leg . | . . . Wheel . | . . . Hover 4 | . . 4 Flight 1 | . . 1 Utility 1 | . . 1 Device . | . . . Storage . | . . . Processor 1 | . . 1 Hackware . | . . . Protection . | . . . Artifact . | . . . Weapon . | . . . Energy Gun . | . . . Energy Cannon . | . . . Ballistic Gun . | . . . Ballistic Cannon . | . . . Launcher . | . . . Special Weapon . | . . . Impact Weapon . | . . . Slashing Weapon . | . . . Piercing Weapon . | . . . Special Melee Weapon . | . . . Unidentified Prototypes . | . . . Parts Lost 3 | . . 3 Power . | . . . Propulsion 3 | . . 3 Utility . | . . . Weapon . | . . . Highest Loss Streak 3 | . . 3 To Critical Strikes . | . . . Average Backups 1 | . . 1 Power . | . . . Propulsion 1 | . . 1 Utility . | . . . Weapon . | . . . Tool/Special . | . . . Unused Backups 2 | . . 2 Power . | . . . Propulsion 2 | . . 2 Utility . | . . . Weapon . | . . . Tool/Special . | . . . Average Slot Usage (%) 5 | . . 6 Hover 1 | . . 2 Flight 1 | . . 1 Processor 2 | . . 2 Peak Build Rating 4 | . . 4 Average Rating . | . . 1 On Entrance . | . . . Avg Prop Armor Cover (%) . | . . . Naked Turns 85 | . 35 50 Heaviest Build . | . . . Greatest Support 6 | 3 3 6 Greatest Overweight (x) . | . . . Average Overweight (x) . | . . . Largest Inventory Capacity 5 | 5 5 5 Average Capacity 5 | 5 5 5 Most Carried 4 | . . 4 Average Carried 1 | . . 1 Final Capacity 5 | 5 5 5 Final Carried 2 | . . 2 Class Distribution -------------------- 100% | Mutant Dominant Class ---------------- Mutant | -10/Materials Mutant | -9/Materials Resources | -11 -10 -9 ----------- Run | Yrd Mat Mat Matter Collected 200 | 200 . . Remotely . | . . . Salvage Created . | . . . Parts . | . . . Haulers Intercepted . | . . . Recyclers Shooed . | . . . Parts Field Recycled . | . . . Retrieved Matter . | . . . Parts Self-Destructed . | . . . Prevented . | . . . Parts Restored . | . . . Kills | -11 -10 -9 ------- Run | Yrd Mat Mat Combat Hostiles Destroyed . | . . . Classes Destroyed . | . . . Best Kill Streak . | . . . Combat Bots Only . | . . . Max Kills in Single Turn . | . . . Gunslinging . | . . . Exploded . | . . . Melee . | . . . Uniques/NPCs Destroyed . | . . . Combat | -11 -10 -9 -------- Run | Yrd Mat Mat Hostile Shots Fired 70 | . 3 67 Missed 28 | . 1 27 Hits 42 | . 2 40 Projectile 42 | . 2 40 Critical Strikes 1 | . . 1 Damage Taken 555 | . 21 534 Core 421 | . 21 400 Absorbed by Shields . | . . . Core Remaining (%) 95 | 100 91 . Volleys Fired . | . . . Largest . | . . . Hottest . | . . . Shots Fired . | . . . Gun . | . . . Cannon . | . . . Launcher . | . . . Special . | . . . Kinetic . | . . . Thermal . | . . . Explosive . | . . . Electromagnetic . | . . . Robot Hit Streak . | . . . Robot Miss Streak . | . . . Penetration Max . | . . . Secondary Targets . | . . . Shots Hit Robots . | . . . Core Hits . | . . . Critical Kills . | . . . Critical Parts Destroyed . | . . . Critical Strikes . | . . . Melee Attacks . | . . . Impact . | . . . Slashing . | . . . Piercing . | . . . Sneak Attacks . | . . . Combat Hostiles . | . . . Follow-up Attacks . | . . . Damage Inflicted 24 | . . 24 Guns . | . . . Cannons . | . . . Explosions . | . . . Melee . | . . . Ramming 24 | . . 24 Kinetic . | . . . Thermal . | . . . Explosive . | . . . Electromagnetic . | . . . Impact . | . . . Slashing . | . . . Piercing . | . . . Highest Corruption . | . . . Average Corruption . | . . . Corruption Purged . | . . . Corruption Blocked . | . . . Overload Shots . | . . . Overflow Damage . | . . . Projectiles . | . . . Explosions . | . . . Melee . | . . . Knockbacks . | . . . Impact . | . . . Kinetic . | . . . Secondary . | . . . Self-Inflicted Damage 11 | . . 11 Shots . | . . . Rammed 4 | . . 4 Targets Rammed 4 | . . 4 Kicked . | . . . Crushed . | . . . Highest Temperature 1 | . . 1 Average Temperature 1 | . . 1 Received Heat Transfer 261 | . 12 249 Siege Activations . | . . . Martial Activations . | . . . Shielding Activations . | . . . Robots Disrupted . | . . . Combat Hostiles . | . . . Robots Corrupted . | . . . Combat Hostiles . | . . . Parts Fried . | . . . Impact Corruptions . | . . . Robots Melted . | . . . Combat Hostiles . | . . . Parts Melted . | . . . Heat Transferred . | . . . Parts Sabotaged . | . . . Parts Stolen . | . . . Parts Stripped . | . . . Power Chain Reactions . | . . . Alert | -11 -10 -9 ------- Run | Yrd Mat Mat Maximum Alert Level . | . . . Low Security (%) 100 | 100 100 100 Level 1 . | . . . Level 2 . | . . . Level 3 . | . . . Level 4 . | . . . Level 5 . | . . . High Security . | . . . Max Security . | . . . Peak Influence 21 | . . 21 Initial . | . . . Average 3 | . . 4 Influence Increases 41 | . . 41 Successful Hack 11 | . . 11 Lose Combat Pursuer 30 | . . 30 Influence Decreases 41 | . . 41 Time Decay 21 | . . 21 Lost Part 20 | . . 20 Squads Dispatched 4 | . . 4 Investigation 2 | . . 2 Extermination . | . . . Reinforcement 2 | . . 2 Assault . | . . . Garrison . | . . . Intercept . | . . . Searches Triggered . | . . . Construction Impeded . | . . . Haulers Reinforced . | . . . Active Scanning Responses . | . . . Cargo Convoy Interrupts . | . . . Stealth | -11 -10 -9 --------- Run | Yrd Mat Mat Distress Signals 3 | . . 3 Communications Jammed . | . . . Distress Signals . | . . . Times Spotted 24 | . 3 21 Peak Tracking Total 17 | . 3 17 Tactical Retreats 2 | . . 2 Traps | -11 -10 -9 ------- Run | Yrd Mat Mat Traps Triggered 1 | . . 1 Indirectly . | . . . Trap Hack Attempts . | . . . Triggered . | . . . Disarmed . | . . . Reprogrammed . | . . . Reused . | . . . Traps Extracted . | . . . Installed . | . . . Triggered . | . . . Machines | -11 -10 -9 ---------- Run | Yrd Mat Mat Machines Disabled . | . . . Max in Single Turn . | . . . Machines Repaired . | . . . Machines Dismantled . | . . . Machines Sabotaged . | . . . Overloaded Fab Kills . | . . . Hacking | -11 -10 -9 --------- Run | Yrd Mat Mat Machines Accessed 2 | . . 2 Terminals 2 | . . 2 Fabricators . | . . . Repair Stations . | . . . Recycling Units . | . . . Scanalyzers . | . . . Garrison Access . | . . . Total Hacks 7 | . . 7 Successful 4 | . . 4 Failed 3 | . . 3 Catastrophic . | . . . Database Lockouts . | . . . Manual 7 | . . 7 Terminals 7 | . . 7 Fabricators . | . . . Repair Stations . | . . . Recycling Units . | . . . Scanalyzers . | . . . Garrison Access . | . . . Terminal Hacks 2 | . . 2 Robot Analysis 2 | . . 2 Fabricator Hacks . | . . . Repair Station Hacks . | . . . Recycling Unit Hacks . | . . . Scanalyzer . | . . . Garrison Access Hacks . | . . . Unauthorized Hacks 2 | . . 2 Terminals 2 | . . 2 Botnet 2 | . . 2 Fabricators . | . . . Repair Stations . | . . . Recycling Units . | . . . Scanalyzers . | . . . Garrison Access . | . . . Data Cores Recovered . | . . . Used . | . . . Hacking Detections 2 | . . 2 Full Trace Events 1 | . . 1 Feedback Events . | . . . Feedback Blocked . | . . . Robot Schematics Acquired . | . . . Robots Built . | . . . Authchips . | . . . Time . | . . . Total Robot Build Rating . | . . . Part Schematics Acquired . | . . . Parts Built . | . . . Authchips . | . . . Time . | . . . Total Part Build Rating . | . . . Part Studies Acquired . | . . . Parts Repaired . | . . . Time . | . . . Parts Recycled . | . . . Recycled Matter . | . . . Retrieved Matter . | . . . Retrieved Components . | . . . Parts Scanalyzed . | . . . Part Schematics Acquired . | . . . Parts Damaged . | . . . Bothacking | -11 -10 -9 ------------ Run | Yrd Mat Mat Used RIF Installer . | . . . Robots Hacked . | . . . Non-combat . | . . . Combat . | . . . Robot Hacks Applied . | . . . Relay Couplers Released . | . . . Fabnet Peak Effective % . | . . . Robots Rewired . | . . . Allies Hacked . | . . . Hacks Repelled . | . . . Allies | -11 -10 -9 -------- Run | Yrd Mat Mat Total Allies . | . . . Largest Group . | . . . Highest-Rated Group . | . . . Highest-Rated Ally . | . . . Total Orders . | . . . Ally Attacks . | . . . Total Damage . | . . . Kills . | . . . Allies Corrupted . | . . . Allies Melted . | . . . Intel | -11 -10 -9 ------- Run | Yrd Mat Mat Active Infowar (turns) . | . . . Robot Analysis Total 2 | . . 2 Derelict Logs Recovered . | . . . Drone Launches . | . . . Drone Recoveries . | . . . Exploration | -11 -10 -9 ------------- Run | Yrd Mat Mat Turns Passed 180 | 11 35 134 Spaces Moved 340 | 22 69 249 Core 259 | 22 69 168 Treads . | . . . Legs . | . . . Wheels . | . . . Hover 18 | . . 18 Flight 63 | . . 63 Fastest Speed 35 | 50 50 35 Average Speed 47 | 50 50 46 Slowest Speed 60 | 50 50 60 Overloaded Moves . | . . . Propulsion Burnouts . | . . . Robots Hopped 7 | . . 7 Potential Cave-ins . | . . . Cave-ins Triggered . | . . . Exploration Rate (%) 18 | 2 27 26 Regions Visited 2 Branch Regions . Pre-discovered Areas . | . . . Known Exits Taken . | . . . Unknown Exits Taken 2 | 1 1 . Scrap Searched . | . . . Spaces Dug . | . . . Terrain Destroyed . | . . . Melee . | . . . Projectile . | . . . AOE . | . . . Terrain Rammed . | . . . Walls Destroyed . | . . . Machines Disabled . | . . . Actions | -11 -10 -9 --------- Run | Yrd Mat Mat Total 347 | 21 68 258 Wait . | . . . Move 325 | 21 68 236 Hop 6 | . . 6 Pick Up 3 | . . 3 Fast Attach 5 | . . 5 Attach 2 | . . 2 Detach 2 | . . 2 Swap . | . . . Drop . | . . . Fire . | . . . Melee . | . . . Ram 4 | . . 4 Kick . | . . . Crush . | . . . Escape Stasis . | . . . Rewire . | . . . Trap . | . . . Miscellaneous . | . . . Route ------- -11/Scrapyard -10/Materials -9/Materials (discovered 1 exit: [*Min]) History --------- Turn | Location | Event 5 | -11/Scrapyard | Discovered new exit (range 14) 12 | -11/Scrapyard | Entered Materials 38 | -10/Materials | Discovered new exit (range 16) 47 | -10/Materials | Entered another Materials area 47 | -9/Materials | Evolved 2 slots: Propulsion x1, Utility x1 138 | -9/Materials | Discovered new exit (range 12) 155 | -9/Materials | Core integrity fell below 50% 180 | -9/Materials | Core integrity fell below 20% 181 | -9/Materials | Destroyed by G-34 Mercenary with Small Laser Last Messages --------------- Investigation squad. 00132_ Critical hit (Burn: +37). 00132_ Acquired VTOL Module. 00136_ ALERT: Hostiles spotted, dispatching reinforcements to Terminal M007. 00138_ W-16 Scout sends out distress signal. 00138_ EXIT=FOUND 00141_ W-16 Scout sends out distress signal. 00145_ Triggered Alarm Trap. 00145_ An alarm sounds. 00145_ ALERT: Alarm triggered, dispatching investigation squad. 00150_ Acquired Imp. Hover Unit. 00157_ W-16 Scout sends out distress signal. 00158_ VTOL Module destroyed. 00163_ Acquired Hover Unit. 00166_ Hover Unit destroyed. 00177_ Slammed into G-34 Mercenary. 00177_ Destabilizing: Core damaged (-16). 00178_ Slammed into G-34 Mercenary. 00181_ Hover Unit destroyed. Map ----- +----------------------------------------------------+ | ?????????????# # # """ """?????????????? | | ?????????????# # + """ ""??????????????? | | ?????????????########## # ???????????? | | ??????????????????????# #############??????????? | | ?????????????????????## ####???????????????????? | | ?????????????????????# "#???????????????????? | | ?????????????????????# ""#???????????????????? | | ?????????????????????# ||#???????????????????? | | ?????????????????????# < ""#???????????????????? | | ?????????????????????# !!#???????????????????? | | ?????????????????????# ""#???????????????????? | | ?????????????????????# "#???????????????????? | | ?????????????????????## ####???????????????????? | | ??????????????????????# #??????????????????????? | | ??????????????????????# +??????????????????????? | | ??????????????????????# #??????????????????????? | | ???????????????######## #??????????????????????? | | ?????????##????# # #??????????????????????? | | ?????????# ??# !! # #??????????????????????? | | ?????????# "" # !! + #??????????????????????? | | ?????????# ""S / !! # + """??????????????????? | | ?????????# "" # !#a ########???????????????? | | ?????????+ # #kgY# #???????????????? | | ?????????# ?## ##### gY# ##??????????????? | | ?????????# ???###???#mgg/g #??????????????? | | ?????????###??????????# g@# * ##??????????????? | | ??????????????????????# Yg# * #???????????????? | | ??????????????????????## # #???????????????? | | ???????????????????????# ########???????????????? | | ???????????????????????# ?????????????????????? | | ???????????????????????# ????????????????????? | | ???????????????????????# ???????????????????? | | ???????????????????????#r######??????????????????? | | ???????????????????????#t#???????????????????????? | | ???????????????????????# #???????????????????????? | | ???????????????????????# ????????????????????????? | | ???????????????????????#]????????????????????????? | | ??????????????????????? ????????????????????????? | | ??????????????????????? ????????????????????????? | | ??????????????????????? ????????????????????????? | | ???????????????????????# ????????????????????????? | | ????????????????????????#????????????????????????? | | ?????????????????????????????????????????????????? | | ?????????????????????????????????????????????????? | | ?????????????????????????????????????????????????? | | ?????????????????????????????????????????????????? | | ?????????????????????????????????????????????????? | | ?????????????????????????????????????????????????? | | ?????????????????????????????????????????????????? | | ?????????????????????????????????????????????????? | +----------------------------------------------------+ Best States ------------- Heat Dissipation 28 Energy Generation 5 Energy Capacity 100 Matter Stores 300 Matter Capacity 300 Sight Range 16 Terrain Scan Density 10 Evasion (%) 63 Salvage Targeting 1 Item Schematics ----------------- None Robot Schematics ------------------ None Fabricated ------------ Nothing Repaired ---------- Nothing Studied --------- None Alien Tech Used ----------------- None Achievements -------------- None Challenges ------------ None Game ------ Seed ThunderMicrodissipatorCorpse Manual? 0 Play Time 00:06:17 Cumulative 144.1 hours Start 2026.01.26 @ 16:27:22 End 2026.01.26 @ 16:30:55 Sessions 1 Manual Loads 0 Difficulty Rogue Special Mode None Game No. 175 Rogue 170 Adventurer 5 Explorer 0 Win Type - Total 3 Types 2/0/0/1/0/0/0/0/0/0 Lore% 44 Gallery% 61 Achievement% 46 Wizard Run 0 Options --------- Layout 0 ASCII 0 Keyboard 1 Movement Vi Keybinds 0 Fullscreen 1 Font 24/Smallcaps Map View 76x50 Zoom Use 0% Tactical HUD 1 Map Filters NONE Filters NONE Steam 1 RUN: 0a06c8cc-b948-4725-80bb-a7d5e8ddd338